fUST/lending_fUST_20240706
["ID","MTS","AMOUNT","RATE_DAILY","PERIOD"]
[331320419,1720221043735,-500.0,0.00049315,120]
[331320420,1720221043745,-500.0,0.00049315,120]
[331320421,1720221043755,-531.71597407,0.00049315,120]
[331320422,1720221043766,-500.0,0.00049315,120]
[331320423,1720221043776,-500.0,0.00049315,120]
[331320424,1720221043785,-682.26,0.00049315,120]
[331320425,1720221043797,-500.0,0.00049315,120]
[331320426,1720221043807,-500.0,0.00049315,120]
[331320427,1720221043817,-500.0,0.00049315,120]
[331320428,1720221043826,-500.0,0.00049315,120]
[331320429,1720221043835,-500.0,0.00049315,120]
[331320430,1720221043844,-500.0,0.00049315,120]
[331320431,1720221043854,-500.0,0.00049315,120]
[331320432,1720221043864,-500.0,0.00049315,120]
[331320433,1720221043874,-500.0,0.00049315,120]
[331320434,1720221043883,-500.0,0.00049315,120]
[331320435,1720221043892,-500.0,0.00049315,120]
[331320436,1720221043903,-500.0,0.00049315,120]
[331320437,1720221043915,-500.0,0.00049315,120]
[331320438,1720221043925,-501.37394267,0.00049315,120]
[331320439,1720221043936,-500.0,0.00049315,120]
[331320440,1720221043948,-500.0,0.00049315,120]
[331320441,1720221043958,-500.0,0.00049315,120]
[331320442,1720221043967,-500.0,0.00049315,120]
[331320443,1720221043977,-500.0,0.00049315,120]
[331320444,1720221043988,-373.30624438,0.00049315,120]
[331320445,1720221043998,-502.20551852,0.00049315,120]
[331320446,1720221044008,-500.0,0.00049315,120]
[331320447,1720221044018,-238.21381551,0.00049315,120]
[331320448,1720221044028,-500.0,0.00049315,120]
[331320449,1720221044037,-500.7675816,0.00049315,120]
[331320450,1720221044070,-500.0,0.00049315,120]
[331320451,1720221044079,-500.0,0.00049315,120]
[331320452,1720221044090,-502.78324507,0.00049315,120]
[331320453,1720221044099,-500.0,0.00049315,120]
[331320454,1720221044109,-500.0,0.00049315,120]
[331320455,1720221044120,-500.0,0.00049315,120]
[331320456,1720221044130,-500.0,0.00049315,120]
[331320457,1720221044139,-500.0,0.00049315,120]
[331320458,1720221044149,-1081.95,0.00049315,120]
[331320459,1720221044159,-500.0,0.00049315,120]
[331320460,1720221044170,-500.0,0.00049315,120]
[331320461,1720221044179,-500.0,0.00049315,60]
[331320462,1720221044188,-500.0,0.00049315,120]
[331320463,1720221044198,-500.0,0.00049315,120]
[331320464,1720221044207,-795.33,0.00049315,120]
[331320465,1720221044216,-500.0,0.00049315,120]
[331320466,1720221044226,-500.0,0.00049315,120]
[331320467,1720221044236,-500.0,0.00049315,120]
[331320468,1720221044245,-567.39,0.00049315,120]
[331320469,1720221044254,-500.0,0.00049315,120]
[331320470,1720221044264,-500.0,0.00049315,120]
[331320471,1720221044273,-500.0,0.00049315,120]
[331320472,1720221044282,-500.0,0.00049315,120]
[331320473,1720221044292,-500.0,0.00049315,120]
[331320474,1720221044302,-500.0,0.00049315,120]
[331320475,1720221044311,-500.0,0.00049315,120]
[331320476,1720221044321,-500.0,0.00049315,120]
[331320477,1720221044330,-506.17867035,0.00049315,120]
[331320478,1720221044339,-567.13,0.00049315,120]
[331320479,1720221044348,-500.0,0.00049315,120]
[331320480,1720221044358,-233.01692564,0.00049315,120]
[331320481,1720221044367,-500.0,0.00049315,120]
[331320482,1720221044376,-500.0,0.00049315,120]
[331320483,1720221044385,-509.95246478,0.00049315,120]
[331320484,1720221044394,-500.0,0.00049315,120]
[331320485,1720221044403,-500.0,0.00049315,120]
[331320486,1720221044607,-500.0,0.00049315,120]
[331320487,1720221044623,-500.0,0.00049315,120]
[331320488,1720221044638,-500.0,0.00049315,120]
[331320489,1720221044649,-500.0,0.00049315,120]
[331320490,1720221044669,-500.0,0.00049315,120]
[331320491,1720221044679,-670.58736382,0.00049315,120]
[331320492,1720221044689,-500.81615623,0.00049315,120]
[331320493,1720221044700,-500.0,0.00049315,120]
[331320494,1720221044710,-500.0,0.00049315,120]
[331320495,1720221044723,-708.19,0.00049315,120]
[331320496,1720221044733,-1025.61,0.00049315,120]
[331320497,1720221044742,-500.0,0.00049315,120]
[331320498,1720221044751,-500.0,0.00049315,120]
[331320499,1720221044762,-1194.82,0.00049315,120]
[331320500,1720221044771,-516.63018144,0.00049315,120]
[331320501,1720221044781,-500.0,0.00049315,120]
[331320502,1720221044793,-535.73,0.00049315,120]
[331320503,1720221044802,-774.85,0.00049315,120]
[331320504,1720221044811,-500.0,0.00049315,120]
[331320505,1720221044820,-557.71,0.00049315,120]
[331320506,1720221044830,-500.0,0.00049315,120]
[331320507,1720221044839,-519.31,0.00049315,120]
[331320508,1720221044848,-500.0,0.00049315,20]
[331320509,1720221044857,-1339.37,0.00049315,120]
[331320510,1720221044866,-500.0,0.00049315,120]
[331320511,1720221044875,-500.0,0.00049315,120]
[331320512,1720221044885,-596.8648204,0.00049315,120]
[331320513,1720221044895,-514.85,0.00049315,120]
[331320514,1720221044903,-500.0,0.00049315,120]
[331320515,1720221044912,-500.0,0.00049315,120]
[331320516,1720221044921,-500.0,0.00049315,120]
[331320517,1720221044931,-500.0,0.00049315,120]
[331320518,1720221044941,-500.0,0.00049315,120]
[331320519,1720221044950,-523.41230049,0.00049315,120]
[331320520,1720221044960,-500.0,0.00049315,30]
[331320521,1720221044970,-500.0,0.00049315,120]
[331320522,1720221044979,-502.01154538,0.00049315,120]
[331320523,1720221044989,-557.72328555,0.00049315,120]
[331320524,1720221044998,-1294.06,0.00049315,60]
[331320525,1720221045007,-500.0,0.00049315,120]
[331320526,1720221045016,-560.71,0.00049315,120]
[331320527,1720221045025,-462.07622331,0.00049315,120]
[331320590,1720221049159,-38.9440974,0.00049315,120]
[331320591,1720221049171,-500.0,0.00049315,120]
[331320592,1720221049180,-500.0,0.00049315,120]
[331320593,1720221049190,-500.0,0.00049315,120]
[331320594,1720221049200,-500.0,0.00049315,120]
[331320595,1720221049209,-599.37,0.00049315,120]
[331320596,1720221049219,-500.0,0.00049315,120]
[331320597,1720221049228,-500.0,0.00049315,120]
[331320598,1720221049261,-200.0,0.00049315,7]
[331320599,1720221049271,-500.0,0.00049315,120]
[331320600,1720221049281,-500.0,0.00049315,120]
[331320601,1720221049291,-500.0,0.00049315,120]
[331320602,1720221049300,-591.26,0.00049315,120]
[331320603,1720221049309,-500.0,0.00049315,120]
[331320604,1720221049319,-935.34,0.00049315,120]
[331320605,1720221049329,-500.0,0.00049315,120]
[331320606,1720221049339,-500.0,0.00049315,120]
[331320607,1720221049348,-500.0,0.00049315,120]
[331320608,1720221049358,-531.76,0.00049315,120]
[331320609,1720221049367,-500.0,0.00049315,120]
[331320610,1720221049377,-662.08,0.00049315,120]
[331320611,1720221049387,-500.0,0.00049315,120]
[331320612,1720221049396,-743.01,0.00049315,120]
[331320613,1720221049406,-500.0,0.00049315,120]
[331320614,1720221049415,-500.0,0.00049315,120]
[331320615,1720221049426,-500.0,0.00049315,120]
[331320616,1720221049436,-500.0,0.00049315,120]
[331320617,1720221049445,-500.0,0.00049315,120]
[331320618,1720221049455,-324.82455744,0.00049315,120]
[331320619,1720221049465,-500.0,0.00049315,120]
[331320620,1720221049475,-1306.46,0.00049315,120]
[331320621,1720221049484,-567.2,0.00049315,120]
[331320622,1720221049494,-500.0,0.00049315,120]
[331320623,1720221049504,-696.52,0.00049315,120]
[331320624,1720221049514,-500.0,0.00049315,120]
[331320625,1720221049523,-500.0,0.00049315,120]
[331320626,1720221049533,-500.0,0.00049315,120]
[331320627,1720221049542,-500.0,0.00049315,120]
[331320628,1720221049551,-500.0,0.00049315,120]
[331320629,1720221049561,-500.0,0.00049315,120]
[331320630,1720221049570,-500.0,0.00049315,120]
[331320631,1720221049580,-500.0,0.00049315,120]
[331320632,1720221049590,-500.0,0.00049315,120]
[331320633,1720221049599,-1668.63,0.00049315,120]
[331320634,1720221049609,-500.0,0.00049315,120]
[331320635,1720221049619,-500.0,0.00049315,120]
[331320636,1720221049627,-500.0,0.00049315,120]
[331320637,1720221049637,-500.0,0.00049315,120]
[331320638,1720221049646,-500.0,0.00049315,120]
[331320639,1720221049655,-500.0,0.00049315,120]
[331320640,1720221049665,-500.0,0.00049315,120]
[331320641,1720221049674,-502.36816493,0.00049315,120]
[331320642,1720221049684,-500.0,0.00049315,120]
[331320643,1720221049693,-500.0,0.00049315,120]
[331320644,1720221049703,-500.0,0.00049315,120]
[331320645,1720221049717,-500.0,0.00049315,120]
[331320646,1720221049727,-500.0,0.00049315,120]
[331320647,1720221049736,-730.15,0.00049315,120]
[331320648,1720221049746,-433.94071389,0.00049315,120]
[331320649,1720221049756,-500.0,0.00049315,120]
[331320650,1720221049766,-500.0,0.00049315,120]
[331320651,1720221049776,-958.86,0.00049315,120]
[331320652,1720221049786,-500.0,0.00049315,120]
[331320653,1720221049796,-500.0,0.00049315,120]
[331320654,1720221049805,-500.0,0.00049315,120]
[331320655,1720221049815,-500.0,0.00049315,90]
[331320656,1720221049825,-500.0,0.00049315,120]
[331320657,1720221049835,-500.0,0.00049315,120]
[331320658,1720221049845,-500.0,0.00049315,120]
[331320659,1720221049855,-500.0,0.00049315,120]
[331320660,1720221049865,-5343.46,0.00049315,120]
[331320661,1720221049874,-1134.53,0.00049315,120]
[331320662,1720221049884,-500.0,0.00049315,120]
[331320663,1720221049893,-500.0,0.00049315,120]
[331320664,1720221049903,-500.0,0.00049315,120]
[331320665,1720221049913,-500.0,0.00049315,120]
[331320666,1720221049927,-500.0,0.00049315,120]
[331320667,1720221049942,-2815.49,0.00049315,120]
[331320668,1720221049979,-500.0,0.00049315,120]
[331320669,1720221049990,-168.30792774,0.00049315,120]
[331320670,1720221050020,-500.0,0.00049315,120]
[331320671,1720221050045,-500.0,0.00049315,120]
[331320672,1720221050055,-500.0,0.00049315,120]
[331320673,1720221050064,-500.0,0.00049315,120]
[331320674,1720221050074,-500.0,0.00049315,120]
[331320675,1720221050084,-500.0,0.00049315,120]
[331320676,1720221050094,-500.0,0.00049315,120]
[331320677,1720221050103,-471.4109546,0.00049315,120]
[331320678,1720221050113,-283.43048808,0.00049315,120]
[331320679,1720221050122,-500.0,0.00049315,120]
[331320680,1720221050132,-1141.0,0.00049315,120]
[331320681,1720221050141,-500.0,0.00049315,120]
[331320682,1720221050150,-500.0,0.00049315,120]
[331320683,1720221050160,-500.0,0.00049315,120]
[331320684,1720221050170,-500.0,0.00049315,120]
[331320685,1720221050179,-500.0,0.00049315,120]
[331320686,1720221050189,-500.0,0.00049315,120]
[331320687,1720221050201,-1215.08,0.00049315,120]
[331320688,1720221050210,-500.0,0.00049315,120]
[331320689,1720221050219,-500.0,0.00049315,120]
[331320690,1720221050229,-3328.91,0.00049315,120]
[331320691,1720221050239,-1156.29,0.00049315,120]
[331320692,1720221050248,-500.0,0.00049315,120]
[331320693,1720221050258,-500.0,0.00049315,120]
[331320694,1720221050268,-500.0,0.00049315,120]
[331320695,1720221050277,-500.0,0.00049315,120]
[331320696,1720221050287,-500.0,0.00049315,2]
[331320697,1720221050296,-500.0,0.00049315,120]
[331320698,1720221050306,-500.0,0.00049315,120]
[331320699,1720221050315,-324.80919972,0.00049315,120]
[331320700,1720221050324,-457.24788517,0.00049315,120]
[331320701,1720221050334,-500.0,0.00049315,120]
[331320702,1720221050343,-500.0,0.00049315,120]
[331320703,1720221050352,-332.49879046,0.00049315,120]
[331320704,1720221050361,-500.0,0.00049315,22]
[331320705,1720221050371,-500.0,0.00049315,120]
[331320706,1720221050381,-500.0,0.00049315,120]
[331320707,1720221050391,-500.0,0.00049315,120]
[331320708,1720221050401,-501.57102348,0.00049315,120]
[331320709,1720221050411,-500.0,0.00049315,120]
[331320710,1720221050422,-500.0,0.00049315,120]
[331320711,1720221050432,-500.0,0.00049315,120]
[331320712,1720221050442,-500.0,0.00049315,120]
[331320713,1720221050452,-500.0,0.00049315,120]
[331320714,1720221050461,-500.0,0.00049315,120]
[331320715,1720221050471,-504.44,0.00049315,120]
[331320716,1720221050481,-500.0,0.00049315,120]
[331320717,1720221050490,-500.0,0.00049315,120]
[331320718,1720221050500,-3672.64,0.00049315,120]
[331320719,1720221050509,-500.0,0.00049315,120]
[331320720,1720221050519,-500.0,0.00049315,120]
[331320721,1720221050528,-500.0,0.00049315,120]
[331320722,1720221050537,-500.0,0.00049315,120]
[331320723,1720221050547,-500.0,0.00049315,120]
[331320724,1720221050556,-249.11334418,0.00049315,120]
[331320725,1720221050566,-500.0,0.00049315,120]
[331320726,1720221050576,-500.0,0.00049315,120]
[331320727,1720221050586,-500.0,0.00049315,120]
[331320728,1720221050596,-500.0,0.00049315,3]
[331320729,1720221050606,-500.0,0.00049315,120]
[331320730,1720221050616,-500.0,0.00049315,120]
[331320731,1720221050629,-2093.49,0.00049315,120]
[331320732,1720221050639,-1207.33,0.00049315,120]
[331320733,1720221050648,-6688.29,0.00049315,120]
[331320734,1720221050658,-500.0,0.00049315,120]
[331320735,1720221050673,-24461.69,0.00049315,120]
[331320736,1720221050682,-500.0,0.00049315,120]
[331320737,1720221050693,-500.0,0.00049315,120]
[331320738,1720221050706,-500.0,0.00049315,120]
[331320739,1720221050723,-2827.76,0.00049315,120]
[331320740,1720221050733,-506.53725978,0.00049315,120]
[331320741,1720221050743,-995.69,0.00049315,120]
[331320742,1720221050753,-500.0,0.00049315,120]
[331320743,1720221050765,-712.36,0.00049315,120]
[331320744,1720221050775,-908.02,0.00049315,120]
[331320745,1720221050784,-517.35,0.00049315,120]
[331320746,1720221050796,-500.0,0.00049315,120]
[331320747,1720221050807,-500.0,0.00049315,120]
[331320748,1720221050816,-500.0,0.00049315,120]
[331320749,1720221050827,-512.12401173,0.00049315,120]
[331320750,1720221050836,-500.0,0.00049315,120]
[331320751,1720221050847,-500.0,0.00049315,120]
[331320752,1720221050856,-500.0,0.00049315,120]
[331320753,1720221050865,-819.85,0.00049315,120]
[331320754,1720221050875,-607.96,0.00049315,120]
[331320755,1720221050885,-500.0,0.00049315,120]
[331320756,1720221050895,-2264.08,0.00049315,21]
[331320757,1720221050904,-500.0,0.00049315,120]
[331320758,1720221050914,-500.0,0.00049315,120]
[331320759,1720221050924,-500.0,0.00049315,120]
[331320760,1720221050934,-500.0,0.00049315,120]
[331320761,1720221050947,-500.0,0.00049315,120]
[331320762,1720221050957,-500.0,0.00049315,120]
[331320763,1720221050968,-500.0,0.00049315,120]
[331320764,1720221050978,-500.0,0.00049315,120]
[331320765,1720221050987,-500.0,0.00049315,120]
[331320766,1720221050997,-500.0,0.00049315,120]
[331320767,1720221051007,-500.0,0.00049315,120]
[331320768,1720221051016,-500.0,0.00049315,120]
[331320769,1720221051026,-511.01,0.00049315,120]
[331320770,1720221051035,-500.0,0.00049315,120]
[331320771,1720221051046,-500.0,0.00049315,120]
[331320772,1720221051055,-504.52645675,0.00049315,120]
[331320773,1720221051065,-500.0,0.00049315,120]
[331320774,1720221051075,-500.0,0.00049315,120]
[331320775,1720221051085,-500.0,0.00049315,120]
[331320776,1720221051094,-500.0,0.00049315,120]
[331320777,1720221051104,-500.0,0.00049315,120]
[331320778,1720221051114,-1534.15,0.00049315,120]
[331320779,1720221051124,-3824.81,0.00049315,120]
[331320780,1720221051134,-500.0,0.00049315,120]
[331320781,1720221051143,-500.0,0.00049315,120]
[331320782,1720221051153,-500.0,0.00049315,120]
[331320783,1720221051163,-500.0,0.00049315,120]
[331320784,1720221051173,-1467.78,0.00049315,120]
[331320785,1720221051182,-1142.98,0.00049315,120]
[331320786,1720221051193,-500.0,0.00049315,120]
[331320787,1720221051202,-500.0,0.00049315,120]
[331320788,1720221051212,-500.0,0.00049315,120]
[331320789,1720221051222,-500.0,0.00049315,120]
[331320790,1720221051231,-500.0,0.00049315,120]
[331320791,1720221051240,-500.0,0.00049315,120]
[331320792,1720221051249,-500.0,0.00049315,120]
[331320793,1720221051259,-5821.71,0.00049315,120]
[331320794,1720221051269,-500.0,0.00049315,120]
[331320795,1720221051279,-601.34,0.00049315,120]
[331320796,1720221051289,-500.0,0.00049315,120]
[331320797,1720221051299,-500.0,0.00049315,120]
[331320798,1720221051308,-500.0,0.00049315,120]
[331320799,1720221051319,-500.0,0.00049315,120]
[331320800,1720221051328,-1253.72,0.00049315,120]
[331320801,1720221051337,-503.91,0.00049315,120]
[331320802,1720221051348,-500.0,0.00049315,120]
[331320803,1720221051358,-500.0,0.00049315,120]
[331320804,1720221051368,-500.0,0.00049315,120]
[331320805,1720221051378,-1189.92,0.00049315,120]
[331320806,1720221051388,-5863.22,0.00049315,120]
[331320807,1720221051397,-500.0,0.00049315,120]
[331320808,1720221051407,-500.0,0.00049315,120]
[331320809,1720221051418,-500.0,0.00049315,120]
[331320810,1720221051427,-500.0,0.00049315,120]
[331320811,1720221051437,-659.46,0.00049315,120]
[331320812,1720221051447,-11870.04,0.00049315,120]
[331320813,1720221051456,-500.4684785,0.00049315,120]
[331320814,1720221051466,-500.0,0.00049315,120]
[331320815,1720221051475,-500.0,0.00049315,120]
[331320816,1720221051486,-500.0,0.00049315,120]
[331320817,1720221051495,-583.46,0.00049315,120]
[331320818,1720221051504,-2706.43,0.00049315,120]
[331320819,1720221051514,-500.0,0.00049315,120]
[331320820,1720221051524,-500.0,0.00049315,120]
[331320821,1720221051533,-502.61178496,0.00049315,120]
[331320822,1720221051542,-9899.71,0.00049315,120]
[331320823,1720221051552,-500.0,0.00049315,120]
[331320824,1720221051561,-1511.82,0.00049315,120]
[331320825,1720221051570,-500.0,0.00049315,120]
[331320826,1720221051582,-500.0,0.00049315,120]
[331320827,1720221051592,-500.0,0.00049315,120]
[331320828,1720221051601,-500.0,0.00049315,120]
[331320829,1720221051611,-2923.55,0.00049315,120]
[331320830,1720221051620,-500.0,0.00049315,120]
[331320831,1720221051630,-397.79827729,0.00049315,120]
[331320832,1720221051640,-1257.52,0.00049315,120]
[331320833,1720221051649,-500.0,0.00049315,120]
[331320834,1720221051659,-500.0,0.00049315,120]
[331320835,1720221051669,-500.0,0.00049315,120]
[331320836,1720221051679,-490.23620865,0.00049315,120]
[331320837,1720221051688,-500.0,0.00049315,120]
[331320838,1720221051702,-500.0,0.00049315,120]
[331320839,1720221051716,-832.27,0.00049315,120]
[331320840,1720221051727,-500.0,0.00049315,120]
[331320841,1720221051736,-500.0,0.00049315,120]
[331320842,1720221051745,-500.0,0.00049315,120]
[331320843,1720221051755,-500.0,0.00049315,120]
[331320844,1720221051767,-1317.31,0.00049315,120]
[331320845,1720221051776,-500.0,0.00049315,120]
[331320846,1720221051786,-392.05107252,0.00049315,120]
[331320847,1720221051798,-3842.41,0.00049315,120]
[331320848,1720221051807,-3842.41,0.00049315,120]
[331320849,1720221051817,-3842.41,0.00049315,120]
[331320850,1720221051826,-500.0,0.00049315,120]
[331320851,1720221051836,-3842.41,0.00049315,120]
[331320852,1720221051846,-500.0,0.00049315,120]
[331320853,1720221051855,-3842.41,0.00049315,120]
[331320854,1720221051865,-3842.41,0.00049315,120]
[331320855,1720221051875,-360.58,0.00049315,120]
[331320856,1720221051885,-238.3330964,0.00049315,120]
[331320857,1720221051895,-628.18,0.00049315,120]
[331320858,1720221051904,-3842.41,0.00049315,120]
[331320859,1720221051913,-3842.41,0.00049315,120]
[331320860,1720221051924,-500.0,0.00049315,120]
[331320861,1720221051936,-3842.41,0.00049315,120]
[331320862,1720221051945,-3842.41,0.00049315,120]
[331320863,1720221051955,-500.0,0.00049315,120]
[331320864,1720221052109,-3842.41,0.00049315,120]
[331320865,1720221052123,-261.44007825,0.00049315,120]
[331320866,1720221052135,-3842.41,0.00049315,120]
[331320867,1720221052144,-3842.41,0.00049315,120]
[331320868,1720221052153,-3842.41,0.00049315,120]
[331320869,1720221052163,-3842.41,0.00049315,120]
[331320870,1720221052173,-3842.41,0.00049315,120]
[331320871,1720221052182,-3842.41,0.00049315,120]
[331320872,1720221052191,-3842.41,0.00049315,120]
[331320873,1720221052200,-500.0,0.00049315,120]
[331320874,1720221052209,-1266.03,0.00049315,120]
[331320875,1720221052218,-500.0,0.00049315,120]
[331320876,1720221052227,-500.0,0.00049315,120]
[331320877,1720221052236,-500.0,0.00049315,120]
[331320878,1720221052245,-500.0,0.00049315,120]
[331320879,1720221052254,-500.0,0.00049315,120]
[331320880,1720221052263,-500.0,0.00049315,120]
[331320881,1720221052272,-602.43,0.00049315,120]
[331320882,1720221052281,-500.0,0.00049315,120]
[331320883,1720221052290,-803.93,0.00049315,120]
[331320884,1720221052298,-1127.33,0.00049315,120]
[331320885,1720221052307,-500.0,0.00049315,120]
[331320886,1720221052316,-1970.54,0.00049315,120]
[331320887,1720221052325,-1165.58,0.00049315,120]
[331320888,1720221052335,-640.90668797,0.00049315,120]
[331320889,1720221052344,-1268.12,0.00049315,120]
[331320890,1720221052353,-504.66540187,0.00049315,120]
[331320891,1720221052362,-1225.71,0.00049315,120]
[331320892,1720221052371,-500.0,0.00049315,120]
[331320893,1720221052379,-500.0,0.00049315,120]
[331320894,1720221052389,-183.03332676,0.00049315,120]
[331320895,1720221052398,-690.68,0.00049315,120]
[331320896,1720221052407,-500.0,0.00049315,120]
[331320897,1720221052416,-583.27293195,0.00049315,120]
[331320898,1720221052425,-627.57,0.00049315,120]
[331320899,1720221052434,-500.0,0.00049315,120]
[331320900,1720221052442,-500.0,0.00049315,120]
[331320901,1720221052451,-500.0,0.00049315,120]
[331320902,1720221052460,-500.0,0.00049315,120]
[331320903,1720221052469,-273.27086151,0.00049315,120]
[331320904,1720221052477,-500.0,0.00049315,120]
[331320905,1720221052486,-293.1949976,0.00049315,2]
[331320906,1720221052495,-453.2286641,0.00049315,2]
[331320907,1720221052504,-155.0,0.0004972,59]
[331320908,1720221052514,-3842.41,0.00049762,120]
[331320909,1720221052523,-151.0,0.00049862,14]
[331320910,1720221052532,-151.0,0.00049862,14]
[331320911,1720221052541,-151.0,0.00049862,14]
[331320912,1720221052550,-151.0,0.00049862,14]
[331320913,1720221052559,-151.0,0.00049862,14]
[331320914,1720221052569,-3842.41,0.00049862,120]
[331320915,1720221052579,-3842.41,0.00049862,120]
[331320916,1720221052591,-3842.41,0.00049862,120]
[331320917,1720221052601,-3842.41,0.00049862,120]
[331320918,1720221052610,-3842.47,0.00049862,120]
[331320919,1720221052620,-176.544443,0.00049862,14]
[331320920,1720221052629,-176.544443,0.00049862,14]
[331320921,1720221052639,-511.41766417,0.00049863,120]
[331320922,1720221052648,-500.0,0.00049863,120]
[331320923,1720221052658,-500.0,0.00049863,120]
[331320924,1720221052668,-500.0,0.00049863,120]
[331320925,1720221052677,-500.0,0.00049863,120]
[331320926,1720221052686,-500.0,0.00049863,120]
[331320927,1720221052695,-500.0,0.00049863,120]
[331320928,1720221052705,-500.0,0.00049863,120]
[331320929,1720221052720,-500.0,0.00049863,120]
[331320930,1720221052730,-500.0,0.00049863,120]
[331320931,1720221052739,-500.0,0.00049863,120]
[331320932,1720221052749,-500.0,0.00049863,120]
[331320933,1720221052760,-500.0,0.00049863,120]
[331320934,1720221052770,-500.0,0.00049863,120]
[331320935,1720221052779,-500.0,0.00049863,120]
[331320936,1720221052792,-500.0,0.00049863,120]
[331320937,1720221052801,-500.0,0.00049863,120]
[331320938,1720221052811,-500.0,0.00049863,120]
[331320939,1720221052820,-500.0,0.00049863,120]
[331320940,1720221052829,-500.0,0.00049863,120]
[331320941,1720221052839,-682.26,0.00049863,120]
[331320942,1720221052848,-500.0,0.00049863,120]
[331320943,1720221052858,-500.0,0.00049863,120]
[331320944,1720221052868,-500.0,0.00049863,120]
[331320945,1720221052878,-500.0,0.00049863,120]
[331320946,1720221052887,-500.0,0.00049863,120]
[331320947,1720221052897,-514.89010241,0.00049863,120]
[331320948,1720221052906,-500.0,0.00049863,120]
[331320949,1720221052916,-500.0,0.00049863,120]
[331320950,1720221052925,-500.0,0.00049863,120]
[331320951,1720221052937,-500.0,0.00049863,120]
[331320952,1720221052946,-500.0,0.00049863,120]
[331320953,1720221052955,-500.0,0.00049863,120]
[331320954,1720221052967,-500.0,0.00049863,120]
[331320955,1720221052976,-500.0,0.00049863,120]
[331320956,1720221052986,-500.0,0.00049863,60]
[331320957,1720221052996,-500.0,0.00049863,120]
[331320958,1720221053006,-795.33,0.00049863,120]
[331320959,1720221053036,-500.0,0.00049863,120]
[331320960,1720221053046,-500.0,0.00049863,120]
[331320961,1720221053055,-567.39,0.00049863,120]
[331320962,1720221053065,-500.0,0.00049863,120]
[331320963,1720221053075,-500.0,0.00049863,120]
[331320964,1720221053084,-500.0,0.00049863,120]
[331320965,1720221053094,-500.0,0.00049863,120]
[331320966,1720221053104,-491.77680068,0.00049863,120]
[331320967,1720221053113,-500.0,0.00049863,120]
[331320968,1720221053124,-567.13,0.00049863,120]
[331320969,1720221053133,-500.0,0.00049863,120]
[331320970,1720221053143,-500.0,0.00049863,120]
[331320971,1720221053152,-500.0,0.00049863,120]
[331320972,1720221053162,-500.0,0.00049863,120]
[331320973,1720221053171,-500.0,0.00049863,120]
[331320974,1720221053181,-500.0,0.00049863,120]
[331320975,1720221053191,-500.0,0.00049863,120]
[331320976,1720221053200,-500.0,0.00049863,120]
[331320977,1720221053210,-500.0,0.00049863,120]
[331320978,1720221053220,-500.0,0.00049863,120]
[331320979,1720221053229,-708.19,0.00049863,120]
[331320980,1720221053239,-1025.61,0.00049863,120]